bitfinex-derivatives/quotes_BTCF0:USTF0_20251210
["timestamp","ask_amount","ask_price","bid_price","bid_amount"]
[1765383720669,0.010821,92415.0,92414.0,0.244971]
[1765383721075,0.3608,92441.0,92430.0,0.2449692]
[1765383721373,0.06893523,92448.0,92432.0,0.23415]
[1765383721374,0.0108188,92433.0,92432.0,0.23415]
[1765383721575,0.010819,92431.0,92430.0,0.01181919]
[1765383721874,0.24109031,92440.0,92421.0,0.23431231]
[1765383721875,0.117,92422.0,92421.0,0.23431231]
[1765383722075,0.23011,92422.0,92421.0,0.23431231]
[1765383722869,0.23011,92422.0,92421.0,0.00016231]
[1765383723271,0.23011,92422.0,92421.0,0.23431231]
[1765383723967,0.23111,92422.0,92421.0,0.23431231]
[1765383724172,0.001,92422.0,92421.0,0.23431231]
[1765383724376,0.001,92422.0,92421.0,0.23531231]
[1765383724572,0.50604,92434.0,92433.0,0.23415]
[1765383724780,0.50604,92434.0,92433.0,0.2449688]
[1765383725874,0.50604,92434.0,92433.0,0.23415]
[1765383726272,0.62304,92434.0,92433.0,0.23415]
[1765383726576,0.62304,92434.0,92433.0,0.2449688]
[1765383727169,0.62404,92434.0,92433.0,0.2459688]
[1765383727475,0.73715,92434.0,92433.0,0.2459688]
[1765383727668,0.73615,92434.0,92433.0,0.2459688]
[1765383727867,0.73715,92434.0,92433.0,0.2449688]
[1765383728475,0.7479687,92434.0,92433.0,0.113]
[1765383728871,0.7479687,92434.0,92428.0,0.3716193]
[1765383728872,0.2409293,92429.0,92428.0,0.3608]
[1765383729071,0.07132,92433.0,92421.0,0.00016231]
[1765383729072,0.2409301,92422.0,92421.0,0.11316231]
[1765383729376,0.2409301,92422.0,92421.0,0.00016231]
[1765383729579,0.2409301,92422.0,92410.0,0.00099999]
[1765383729580,0.23011,92420.0,92410.0,0.00099999]
[1765383729767,0.23011,92420.0,92411.0,0.0108213]
[1765383730171,0.23011,92420.0,92410.0,0.00099999]
[1765383730582,0.23011,92420.0,92410.0,0.00110839]
[1765383731180,0.23011,92420.0,92419.0,0.3618]
[1765383732470,0.23011,92420.0,92419.0,0.59595]
[1765383732681,0.23011,92420.0,92419.0,0.3618]
[1765383733082,0.23011,92420.0,92419.0,0.59595]
[1765383733584,0.23011,92420.0,92419.0,0.3618]
[1765383734181,0.23011,92420.0,92419.0,0.001]
[1765383736284,0.23011,92420.0,92410.0,0.00110839]
[1765383736285,0.2630914,92411.0,92410.0,0.0001084]
[1765383736473,1.1294914,92411.0,92410.0,0.0001084]
[1765383736782,0.2984427,92400.0,92399.0,0.3608]
[1765383737285,0.2984427,92400.0,92390.0,0.00099999]
[1765383737286,0.2630937,92391.0,92390.0,0.00099999]
[1765383737581,0.3221,92389.0,92388.0,0.3608]
[1765383737976,0.25227,92389.0,92388.0,0.3608]
[1765383739086,0.25227,92389.0,92388.0,0.61564]
[1765383739475,0.01098531,92398.0,92395.0,0.25484]
[1765383739671,0.01098531,92398.0,92397.0,0.25484]
[1765383739876,0.00016231,92398.0,92397.0,0.25484]
[1765383740776,0.26325521,92398.0,92397.0,0.25484]
[1765383740971,0.25243231,92398.0,92397.0,0.25484]
[1765383741276,0.00016231,92398.0,92397.0,0.25484]
[1765383742384,0.00016231,92398.0,92397.0,0.25584]
[1765383742579,0.00016231,92398.0,92397.0,0.25684]
[1765383743284,0.00016231,92398.0,92397.0,0.25484]
[1765383743483,0.00016231,92398.0,92397.0,0.25684]
[1765383745090,0.25243231,92398.0,92397.0,0.25684]
[1765383746278,0.00016231,92398.0,92397.0,0.25684]
[1765383746487,0.00016231,92398.0,92397.0,0.25584]
[1765383746688,0.00116231,92398.0,92397.0,0.25484]
[1765383746988,0.2761082,92420.0,92413.0,0.0108211]
[1765383746989,0.25227,92420.0,92413.0,0.0108211]
[1765383747184,0.263091,92414.0,92413.0,0.61564]
[1765383748090,0.263091,92414.0,92413.0,0.6045]
[1765383748286,0.252982,92406.0,92405.0,0.48497]
[1765383748489,0.24216,92406.0,92405.0,0.60134]
[1765383748678,0.24216,92406.0,92405.0,0.6121621]
[1765383749088,0.24316,92414.0,92413.0,0.24054]
[1765383749282,0.24316,92414.0,92413.0,0.12417]
[1765383749583,0.252981,92414.0,92413.0,0.12417]
[1765383749784,0.24216,92407.0,92406.0,0.2513619]
[1765383749984,0.24216,92407.0,92406.0,0.24054]
[1765383750695,0.252982,92406.0,92405.0,0.3608]
[1765383750988,0.24216,92405.0,92404.0,0.00016231]
[1765383751190,0.74788,92405.0,92404.0,0.00016231]
[1765383751791,0.74788,92405.0,92384.0,0.6121646]
[1765383751792,0.12054,92385.0,92384.0,0.6121646]
[1765383752095,0.12054,92385.0,92384.0,0.64079881]
[1765383752592,0.24216,92392.0,92391.0,0.2513637]
[1765383753594,0.24216,92392.0,92391.0,0.2523637]
[1765383754384,0.24216,92392.0,92391.0,0.24154]
[1765383754794,0.24216,92392.0,92391.0,0.24254]
[1765383758692,0.00016231,92401.0,92400.0,0.24054]
[1765383758889,0.3316203,92421.0,92400.0,0.24054]
[1765383758890,0.05811813,92424.0,92423.0,0.24054]
[1765383759100,0.0108195,92428.0,92427.0,0.24054]
[1765383759394,0.010819,92432.0,92427.0,0.24054]
[1765383759589,0.24216,92432.0,92431.0,0.24054]
[1765383759792,0.24216,92431.0,92430.0,0.00099999]
[1765383759990,0.252979,92431.0,92430.0,0.24153999]
[1765383760298,0.24216,92431.0,92430.0,0.24054]
[1765383762596,0.24316,92431.0,92430.0,0.24054]
[1765383763487,0.24316,92431.0,92430.0,0.12417]
[1765383765297,0.24316,92431.0,92430.0,0.24054]
[1765383767997,0.001,92431.0,92430.0,0.31141]
[1765383768292,0.0012441,92440.0,92439.0,0.24054]
[1765383768992,0.0012441,92440.0,92439.0,0.2513581]
[1765383771186,0.00016231,92440.0,92439.0,0.2513581]
[1765383771396,0.3335558,92459.0,92458.0,0.24054]
[1765383771599,0.2529758,92459.0,92458.0,0.24054]
[1765383771786,0.24216,92459.0,92458.0,0.24054]
[1765383772601,0.24516,92459.0,92458.0,0.24054]
[1765383773087,0.24816,92459.0,92458.0,0.24054]
[1765383773688,0.006,92459.0,92458.0,0.60134]
[1765383775605,0.00016231,92468.0,92467.0,0.2513548]
[1765383777194,0.24232231,92468.0,92467.0,0.24054]
[1765383777391,0.00913,92478.0,92477.0,0.2513537]
[1765383777590,0.00913,92478.0,92477.0,0.6121537]
[1765383777797,0.00913,92478.0,92477.0,0.2513537]
[1765383778704,0.01313,92478.0,92477.0,0.2513537]
[1765383778903,0.01313,92478.0,92477.0,0.24054]
[1765383779093,0.12366,92478.0,92477.0,0.24054]
[1765383779297,0.23154,92478.0,92477.0,0.24254]
[1765383780405,0.22754,92478.0,92477.0,0.24254]
[1765383780604,0.22754,92478.0,92477.0,0.24154]
[1765383780905,0.22754,92478.0,92477.0,0.24354]
[1765383781405,0.22754,92478.0,92477.0,0.24154]
[1765383781605,0.00913,92478.0,92477.0,0.24154]
[1765383781803,0.00913,92478.0,92477.0,0.24054]
[1765383782005,0.00913,92478.0,92477.0,0.24154]
[1765383783404,0.0108137,92477.0,92476.0,0.3608]
[1765383783593,0.2292246,92469.0,92468.0,0.21185222]
[1765383784000,0.0108143,92472.0,92471.0,0.21169]
[1765383784196,0.11053,92472.0,92471.0,0.21169]
[1765383785021,0.00913,92478.0,92477.0,0.2225037]
[1765383785215,0.00913,92478.0,92477.0,0.5833037]
[1765383786811,0.00913,92478.0,92477.0,0.5843037]
[1765383787918,0.00913,92478.0,92477.0,0.5873037]
[1765383788301,0.22754,92478.0,92477.0,0.57649]
[1765383788506,0.22754,92478.0,92477.0,0.3648]
[1765383788715,0.22754,92478.0,92477.0,0.004]
[1765383789812,0.22754,92478.0,92477.0,0.10746]
[1765383790007,0.22754,92478.0,92477.0,0.003]
[1765383790413,0.22754,92478.0,92477.0,0.10946]
[1765383790714,0.22854,92478.0,92477.0,0.10646]
[1765383791014,0.22854,92478.0,92470.0,0.00099999]
[1765383791015,0.21841,92474.0,92473.0,0.117274]
[1765383791203,0.01113,92478.0,92477.0,0.2225037]
[1765383791408,0.00016222,92487.0,92486.0,0.2225026]
[1765383791618,0.3716105,92505.0,92504.0,0.21169]
[1765383792105,0.3608,92505.0,92504.0,0.2225005]
[1765383792303,0.1213402,92507.0,92506.0,0.21169]
[1765383792918,0.11053,92507.0,92506.0,0.21169]
[1765383793507,0.11353,92507.0,92506.0,0.21169]
[1765383794113,0.11653,92507.0,92506.0,0.21169]
[1765383794315,0.21196,92504.0,92503.0,0.3608]
[1765383794516,0.21196,92498.0,92490.0,0.01181209]
[1765383794914,0.21196,92498.0,92497.0,0.21469222]
[1765383795317,0.22582287,92507.0,92497.0,0.21469222]
[1765383795318,0.006,92507.0,92506.0,0.21453]
[1765383795812,0.003,92507.0,92506.0,0.21453]
[1765383796611,0.00016222,92516.0,92515.0,0.2253392]
[1765383796819,0.10481222,92516.0,92515.0,0.2253392]
[1765383797021,0.21212222,92516.0,92515.0,0.2253392]
[1765383798618,0.21196,92514.0,92513.0,0.3608]
[1765383798926,0.2227704,92505.0,92504.0,0.3608]
[1765383799124,0.2227704,92505.0,92504.0,0.57533]
[1765383799516,0.0108104,92505.0,92504.0,0.57533]
[1765383799913,0.2227704,92505.0,92504.0,0.57533]
[1765383800113,0.2247704,92505.0,92504.0,0.3608]
[1765383800622,0.2227712,92498.0,92497.0,0.00016222]
[1765383802219,0.7302912,92498.0,92497.0,0.00016222]
[1765383803824,0.6229812,92498.0,92497.0,0.21469222]
[1765383804526,0.7302912,92498.0,92497.0,0.21469222]
[1765383804728,0.7302912,92498.0,92497.0,0.00016222]
[1765383804914,0.7302912,92498.0,92490.0,0.00099999]
[1765383804915,0.222772,92491.0,92490.0,0.00099999]
[1765383805115,0.2227726,92486.0,92480.0,0.02955551]
[1765383805319,0.2227726,92486.0,92485.0,0.39060933]
[1765383806220,0.2227726,92486.0,92485.0,0.39160933]
[1765383806727,0.01097382,92495.0,92494.0,0.21453]
[1765383807025,0.01097382,92495.0,92494.0,0.60516288]
[1765383807026,0.00016222,92495.0,92494.0,0.60516288]
[1765383808330,0.00116222,92495.0,92494.0,0.60516288]
[1765383809428,0.22298382,92495.0,92494.0,0.60516288]
[1765383810030,0.21217222,92495.0,92494.0,0.60516288]
[1765383810219,0.00116222,92495.0,92494.0,0.60516288]
[1765383811025,0.00116222,92495.0,92494.0,0.60523546]
[1765383811620,0.46523059,92520.0,92511.0,0.0108097]
[1765383811823,0.7277888,92519.0,92518.0,0.09744]
[1765383812030,0.83590333,92519.0,92518.0,0.09744]
[1765383812235,0.0108095,92513.0,92512.0,0.5617]
[1765383812733,0.2223095,92513.0,92512.0,0.5617]
[1765383814028,0.2223095,92513.0,92512.0,0.5627]
[1765383814235,0.2223095,92513.0,92512.0,0.5735096]
[1765383814628,0.2115,92513.0,92512.0,0.5735096]
[1765383815024,0.2223095,92513.0,92512.0,0.002]
[1765383815726,0.2223105,92504.0,92503.0,0.36096213]
[1765383815933,0.2223105,92504.0,92503.0,0.39086589]
[1765383816926,0.2223105,92504.0,92503.0,0.03006589]
[1765383817131,0.2223105,92504.0,92503.0,0.00316213]
[1765383817841,0.2223105,92504.0,92503.0,0.20406213]
[1765383818038,0.2223105,92504.0,92503.0,0.10260213]
[1765383819530,0.2223105,92504.0,92503.0,0.00516213]
[1765383821826,0.2223105,92504.0,92503.0,0.10260213]
[1765383822031,0.2223105,92504.0,92503.0,0.20606213]
[1765383823347,0.2115,92504.0,92503.0,0.20606213]
[1765383823844,0.2115,92504.0,92503.0,0.00516213]
[1765383824732,0.2115,92504.0,92503.0,0.20606213]
[1765383824942,0.50532,92505.0,92504.0,0.2009]
[1765383825241,0.2223092,92515.0,92514.0,0.2009]
[1765383825447,0.7273892,92515.0,92514.0,0.2009]
[1765383825741,0.2223105,92504.0,92503.0,0.00516213]
[1765383825946,0.7273905,92504.0,92503.0,0.00516213]
[1765383826142,0.7273905,92504.0,92503.0,0.00016213]
[1765383826534,0.7273905,92504.0,92503.0,0.09760213]
[1765383827649,0.7273905,92504.0,92503.0,0.09960213]
[1765383828440,0.7273905,92504.0,92503.0,0.10260213]
[1765383828638,0.71658,92504.0,92503.0,0.23594492]
[1765383831446,0.7273905,92504.0,92503.0,0.23594492]
[1765383831647,0.50508,92504.0,92503.0,0.20606213]
[1765383832057,0.50508,92504.0,92503.0,0.23595682]
[1765383834557,0.61022,92504.0,92503.0,0.23595682]
[1765383836159,0.71658,92504.0,92503.0,0.23595682]
[1765383838561,0.71658,92504.0,92503.0,0.03505682]
[1765383838764,0.71658,92504.0,92503.0,0.21507682]
[1765383838968,0.71658,92504.0,92503.0,0.03505682]
[1765383839858,0.71658,92504.0,92503.0,0.21507682]
[1765383840365,0.71658,92504.0,92503.0,0.03505682]
[1765383840663,0.71658,92504.0,92503.0,0.12440682]
[1765383840960,0.71658,92504.0,92503.0,0.21507682]
[1765383841367,0.71658,92504.0,92503.0,0.12440682]
[1765383841771,0.71658,92504.0,92503.0,0.02989469]
[1765383841967,0.18336,92489.0,92488.0,0.3608]
[1765383842154,0.18336,92489.0,92484.0,0.02868761]
[1765383842155,0.18336,92484.0,92483.0,0.08935]
[1765383842355,0.1022624,92488.0,92487.0,0.18002]
[1765383842555,0.1022624,92488.0,92487.0,0.54082]
[1765383842556,0.505,92488.0,92487.0,0.54082]
[1765383842861,0.00016213,92497.0,92496.0,0.18002]
[1765383843058,0.50516213,92497.0,92496.0,0.1908314]
[1765383843461,0.59661213,92497.0,92496.0,0.1908314]
[1765383843665,0.68852213,92497.0,92496.0,0.18002]
[1765383843864,0.68952213,92497.0,92496.0,0.18002]
[1765383844254,0.68952213,92497.0,92496.0,0.54082]
[1765383844855,0.00116213,92497.0,92496.0,0.54082]
[1765383845457,0.00016213,92497.0,92496.0,0.54082]
[1765383846666,0.00016213,92497.0,92496.0,0.54282]
[1765383847562,0.00016213,92497.0,92496.0,0.54482]
[1765383848070,0.00016213,92497.0,92496.0,0.54582]
[1765383849965,0.00016213,92497.0,92496.0,0.58407015]
[1765383850572,0.00016213,92497.0,92496.0,0.54582]
[1765383854071,0.00016213,92497.0,92496.0,0.57537263]
[1765383858477,0.00016213,92497.0,92496.0,0.58618403]
[1765383858976,0.010809,92517.0,92510.0,0.00099999]
[1765383859168,0.200999,92517.0,92516.0,0.1896]
[1765383859368,0.200999,92517.0,92516.0,0.57995263]
[1765383859767,0.19019,92517.0,92516.0,0.57995263]
[1765383860680,0.19219,92517.0,92516.0,0.57995263]
[1765383862378,0.002,92517.0,92516.0,0.57995263]
[1765383862777,0.00016213,92526.0,92525.0,0.2004081]
[1765383862968,0.00016213,92526.0,92525.0,0.59076499]
[1765383863369,0.00108062,92540.0,92539.0,0.2004064]
[1765383863565,0.09288062,92540.0,92539.0,0.2004064]
[1765383863765,0.00108062,92540.0,92539.0,0.2004064]
[1765383863979,0.00108062,92540.0,92539.0,0.2299347]
[1765383864681,0.01108062,92540.0,92539.0,0.2299347]
[1765383865075,0.00508062,92540.0,92539.0,0.2299347]
[1765383865278,0.00708062,92540.0,92539.0,0.2299347]
[1765383866281,0.00308062,92540.0,92539.0,0.2299347]
[1765383866477,0.00408062,92540.0,92539.0,0.2299347]
[1765383866683,0.00408062,92540.0,92539.0,0.22985657]
[1765383867180,0.00408062,92540.0,92539.0,0.2004064]
[1765383867771,0.00408062,92540.0,92539.0,0.1896]
[1765383868377,0.00016213,92549.0,92548.0,0.1857454]
[1765383868674,0.00016213,92549.0,92548.0,0.5465454]
[1765383869078,0.01096743,92549.0,92548.0,0.5465454]
[1765383869265,0.01096743,92549.0,92548.0,0.53574]
[1765383869466,0.19114743,92549.0,92548.0,0.53574]
[1765383869665,0.19314743,92549.0,92548.0,0.53574]
[1765383869980,0.01596743,92549.0,92548.0,0.53574]
[1765383870882,0.10624743,92549.0,92548.0,0.53574]
[1765383871079,0.00516213,92549.0,92548.0,0.53574]
[1765383871479,0.19614743,92549.0,92548.0,0.53574]
[1765383871773,0.09028,92531.0,92530.0,0.00116212]
[1765383871974,0.18018,92531.0,92530.0,0.17510213]
[1765383872176,0.09028,92534.0,92530.0,0.00016213]
[1765383872369,0.1010868,92536.0,92535.0,0.17494]
[1765383872765,0.1909868,92536.0,92535.0,0.17494]
[1765383873177,0.1909868,92536.0,92535.0,0.53574]
[1765383873380,0.18018,92536.0,92535.0,0.53574]
[1765383874375,0.18118,92536.0,92535.0,0.53574]
[1765383875079,0.18118,92536.0,92535.0,0.3608]
[1765383875280,0.1909874,92531.0,92530.0,0.00016213]
[1765383876281,0.5517874,92531.0,92530.0,0.00016213]
[1765383876768,1.0585874,92531.0,92530.0,0.17510213]
[1765383877179,1.0605874,92531.0,92530.0,0.00016213]
[1765383877774,0.11988416,92561.0,92530.0,0.00016213]
[1765383877775,0.01096743,92549.0,92548.0,0.17494]
[1765383877978,0.00016213,92549.0,92548.0,0.17494]
[1765383878483,0.09028,92562.0,92561.0,0.17494]
[1765383878690,0.3608,92564.0,92563.0,0.17494]
[1765383878877,0.54098,92564.0,92563.0,0.17494]
[1765383879272,0.18018,92558.0,92557.0,0.1857443]
[1765383879581,0.18018,92558.0,92557.0,0.17494]
[1765383879884,0.18018,92555.0,92554.0,0.00016213]
[1765383880087,0.54098,92555.0,92554.0,0.00016213]
[1765383881981,0.54298,92555.0,92554.0,0.00016213]
[1765383882181,0.54498,92555.0,92554.0,0.00016213]
[1765383882383,0.18018,92549.0,92548.0,0.3608]
[1765383883685,0.18118,92549.0,92548.0,0.45042]
[1765383883887,0.18118,92549.0,92548.0,0.53574]
[1765383884895,0.68594,92549.0,92548.0,0.53574]
[1765383885294,0.18218,92549.0,92548.0,0.53574]
[1765383885591,0.6869,92549.0,92548.0,0.53574]
[1765383886890,0.18218,92549.0,92548.0,0.53574]
[1765383887190,0.0540063,92584.0,92548.0,0.53574]
[1765383887191,0.3608,92582.0,92564.0,0.17494]
[1765383887492,0.18018,92551.0,92550.0,0.17494]
[1765383887681,0.18018,92551.0,92550.0,0.08962]
[1765383887988,0.26874335,92560.0,92539.0,0.00016213]
[1765383887989,0.18018,92540.0,92539.0,0.00016213]
[1765383888287,0.18018,92540.0,92539.0,0.11913894]
[1765383888591,0.18018,92540.0,92539.0,0.53590213]
[1765383889179,0.18018,92540.0,92539.0,0.45158213]
[1765383889589,0.18018,92540.0,92539.0,0.53690213]
[1765383890283,0.0108061,92542.0,92539.0,0.53690213]
[1765383890486,0.21915548,92549.0,92548.0,0.17494]
[1765383890487,0.01096743,92549.0,92548.0,0.17494]
[1765383890792,0.19114743,92549.0,92548.0,0.17494]
[1765383891484,0.18018,92548.0,92547.0,0.3608]
[1765383891692,0.18018,92548.0,92547.0,0.53574]
[1765383893078,0.18018,92548.0,92547.0,0.3608]
[1765383893278,0.1909862,92541.0,92540.0,0.17494]
[1765383893491,0.1909862,92541.0,92539.0,0.00016213]
[1765383893492,0.22995,92540.0,92539.0,0.00016213]
[1765383894482,0.18018,92531.0,92530.0,0.36179999]
[1765383895398,0.1909874,92531.0,92530.0,0.3608]
[1765383895693,0.1909874,92531.0,92530.0,0.45042]
[1765383895995,0.1909874,92531.0,92530.0,0.53874]
[1765383896315,0.1909874,92531.0,92530.0,0.53574]
[1765383896593,0.1909874,92531.0,92530.0,0.53774]
[1765383896794,0.1909874,92531.0,92530.0,0.53874]
[1765383898493,0.1909874,92531.0,92530.0,0.45342]
[1765383898686,0.1909874,92531.0,92530.0,0.003]
[1765383899900,0.1789784,92522.0,92521.0,0.00016213]
[1765383900089,0.1789784,92522.0,92521.0,0.08231213]
[1765383900292,0.1789784,92522.0,92521.0,0.16459213]
[1765383900490,0.1789784,92522.0,92521.0,0.00016213]
[1765383900692,0.5397784,92522.0,92521.0,0.00016213]
[1765383901195,0.1789791,92516.0,92515.0,0.00108091]
[1765383901399,0.1789791,92516.0,92515.0,0.16551091]
[1765383901594,0.1789791,92516.0,92515.0,0.00108091]
[1765383901789,0.1789791,92516.0,92515.0,0.08323091]
[1765383901985,0.1789791,92516.0,92515.0,0.16551091]
[1765383902388,0.1789791,92516.0,92515.0,0.08323091]
[1765383902603,0.1789791,92516.0,92515.0,0.16551091]
[1765383902805,0.1789802,92507.0,92506.0,0.00016213]
[1765383902991,0.1789802,92507.0,92490.0,0.05516]
[1765383902992,0.16817,92501.0,92500.0,0.00099999]
[1765383903194,0.16817,92491.0,92490.0,0.00099999]
[1765383903499,0.683742,92491.0,92490.0,0.21548]
[1765383904400,0.683742,92491.0,92490.0,0.21748]
[1765383904602,0.683742,92491.0,92490.0,0.16643]
[1765383904801,0.683742,92491.0,92481.0,0.00016213]
[1765383904997,0.16817,92482.0,92481.0,0.00016213]
[1765383906303,0.16817,92482.0,92481.0,0.00216213]
[1765383906795,0.16817,92482.0,92481.0,0.00081094]
[1765383907196,0.16817,92482.0,92481.0,0.00181094]
[1765383907599,0.16817,92482.0,92481.0,0.00081094]
[1765383907807,0.16817,92482.0,92481.0,0.00381094]
[1765383908902,0.16817,92482.0,92472.0,0.00016213]
[1765383908903,0.1714741,92473.0,92472.0,0.00016213]
[1765383909100,1.0371541,92473.0,92472.0,3e-08]
[1765383909297,0.6763541,92473.0,92472.0,3e-08]
[1765383909501,0.1714767,92451.0,92443.0,0.3608]
[1765383909703,0.1714775,92444.0,92443.0,0.16371]
[1765383909909,0.1714775,92444.0,92440.0,0.05105]
[1765383909910,0.50488,92450.0,92449.0,0.16371]
[1765383910290,0.50488,92450.0,92449.0,0.52451]
[1765383911003,0.5166968,92450.0,92449.0,0.52451]
[1765383911309,0.6773568,92450.0,92449.0,0.3608]
[1765383911509,0.6773568,92450.0,92449.0,0.44421]
[1765383911800,0.6763568,92450.0,92449.0,0.44521]
[1765383912002,0.66554,92450.0,92449.0,0.52551]
[1765383913302,0.66554,92450.0,92449.0,0.52651]
[1765383913800,0.66554,92450.0,92449.0,0.44521]
[1765383914006,0.66554,92450.0,92449.0,0.52551]
[1765383915003,0.3608,92457.0,92449.0,0.52551]
[1765383915209,0.01097813,92459.0,92449.0,0.52551]
[1765383915210,0.00016223,92459.0,92458.0,0.16371]
[1765383915904,0.07799223,92459.0,92458.0,0.16371]
[1765383916102,0.07799223,92459.0,92458.0,0.1745259]
[1765383916327,0.00016223,92459.0,92458.0,0.1745259]
[1765383917001,0.09180803,92459.0,92458.0,0.16371]
[1765383917204,0.08099223,92459.0,92458.0,0.1745259]
[1765383917407,0.00316223,92459.0,92458.0,0.1745259]
[1765383917592,0.00116223,92459.0,92458.0,0.16371]
[1765383917793,0.00116223,92459.0,92458.0,0.1745259]
[1765383918198,0.00216223,92459.0,92458.0,0.1745259]
[1765383918511,0.00116223,92459.0,92458.0,0.16371]
[1765383919411,0.00116223,92459.0,92458.0,0.16471]
[1765383919914,0.16182223,92459.0,92458.0,0.16471]
[1765383920209,0.16082223,92459.0,92458.0,0.16571]
[1765383920603,0.16082223,92459.0,92458.0,0.16471]
[1765383920800,0.16182223,92459.0,92458.0,0.16471]
[1765383921197,0.16282223,92459.0,92458.0,0.16471]
[1765383921506,0.16282223,92459.0,92458.0,0.001]
[1765383921905,0.0108159,92458.0,92457.0,0.3608]
[1765383922112,0.0108178,92442.0,92441.0,0.16371]
[1765383922303,0.0886474,92446.0,92445.0,0.0803]
[1765383922506,0.0886474,92446.0,92445.0,0.16371]
[1765383923211,0.0108169,92450.0,92449.0,0.16371]
[1765383923409,0.0108161,92456.0,92452.0,0.16371]
[1765383923599,0.0108164,92454.0,92450.0,0.0615168]
[1765383923796,0.0108164,92454.0,92453.0,0.16371]
[1765383925099,0.16066,92450.0,92449.0,0.44421]
[1765383925295,0.16066,92450.0,92449.0,0.52451]
[1765383925506,0.16066,92450.0,92449.0,0.16371]
[1765383925705,0.0886479,92441.0,92440.0,0.57556]
[1765383926706,0.50508,92455.0,92440.0,0.57556]
[1765383926707,0.371616,92457.0,92456.0,0.16371]
[1765383926920,0.171476,92457.0,92456.0,0.16371]
[1765383927899,0.15748,92450.0,92449.0,0.001]
[1765383928104,0.373616,92457.0,92440.0,0.41284999]
[1765383928105,0.1682979,92441.0,92440.0,0.57228]
[1765383928409,0.1682979,92441.0,92440.0,0.57428]
[1765383928410,0.0108179,92441.0,92440.0,0.57428]
[1765383928912,0.0108179,92441.0,92440.0,0.57228]
[1765383929104,0.0887179,92441.0,92440.0,0.57228]
[1765383929714,0.0108179,92441.0,92440.0,0.57228]
[1765383929911,0.0108179,92441.0,92440.0,0.57628]
[1765383930216,0.0108179,92441.0,92440.0,0.60551663]
[1765383930511,0.0108179,92441.0,92440.0,0.57628]
[1765383931010,0.0108176,92444.0,92443.0,0.16043]
[1765383931418,0.1682976,92444.0,92443.0,0.16043]
[1765383932017,0.1682979,92441.0,92440.0,0.3628]
[1765383932316,0.1682979,92441.0,92440.0,0.39192388]
[1765383933017,0.1682979,92441.0,92440.0,0.3608]
[1765383933220,0.1682979,92441.0,92440.0,0.47142466]
[1765383933606,0.1682979,92441.0,92440.0,0.47342466]
[1765383934213,0.1682979,92441.0,92440.0,0.002]
[1765383934616,0.1682979,92441.0,92440.0,0.004]
[1765383936720,0.1702979,92441.0,92440.0,0.002]
[1765383937509,0.1682987,92434.0,92433.0,7.837e-05]
[1765383937710,0.6734587,92434.0,92433.0,0.03013773]
[1765383938810,0.6744587,92434.0,92433.0,0.11158773]
[1765383939013,0.6744587,92434.0,92433.0,0.19056773]
[1765383939823,0.6744587,92434.0,92433.0,0.03005936]
[1765383940009,0.15748,92423.0,92422.0,0.38942446]
[1765383940214,0.15748,92423.0,92422.0,0.47232594]
[1765383940416,0.15748,92423.0,92422.0,0.55130594]
[1765383941322,0.15748,92423.0,92422.0,0.03207594]
[1765383941910,0.15748,92423.0,92422.0,0.003]
[1765383942216,0.1683008,92416.0,92415.0,0.00108208]
[1765383942418,1.0343008,92416.0,92415.0,0.00108208]
[1765383942809,1.14249956,92416.0,92415.0,0.00108208]
[1765383943425,1.14249956,92416.0,92415.0,0.00408208]
[1765383943623,0.63729956,92416.0,92415.0,0.08553208]
[1765383943925,1.0343408,92416.0,92415.0,0.19582878]
[1765383944126,0.0887208,92416.0,92415.0,0.19882878]
[1765383944313,0.5939608,92416.0,92415.0,0.19882878]
[1765383944513,0.5939608,92416.0,92415.0,0.19881125]
[1765383944713,0.5939608,92416.0,92415.0,0.19581125]
[1765383944926,0.6765408,92416.0,92415.0,0.19281125]
[1765383945127,0.6765408,92416.0,92415.0,0.03238125]
[1765383945727,0.6765408,92416.0,92415.0,0.00108208]
[1765383946125,0.6765408,92416.0,92415.0,0.08253208]
[1765383946425,0.6765408,92416.0,92415.0,0.16151208]
[1765383946825,0.0917208,92416.0,92415.0,0.16151208]
[1765383947027,0.5970008,92416.0,92415.0,0.19268692]
[1765383947220,0.6765808,92416.0,92415.0,0.19268692]
[1765383949221,0.50828,92416.0,92415.0,0.20350782]
[1765383949523,0.50828,92416.0,92415.0,0.56430782]
[1765383950020,0.003,92416.0,92415.0,0.56430782]
[1765383950222,0.003,92416.0,92415.0,0.59303169]
[1765383951122,0.0138208,92416.0,92415.0,0.55348692]
[1765383951422,0.0917208,92416.0,92415.0,0.55348692]
[1765383951622,0.0138208,92416.0,92415.0,0.58222099]
[1765383951814,0.0138208,92416.0,92415.0,0.55348692]
[1765383951815,0.003,92416.0,92415.0,0.55348692]
[1765383955031,0.16048,92416.0,92415.0,0.19268692]
[1765383955228,0.16048,92416.0,92415.0,0.00108208]
[1765383955429,0.0809,92416.0,92415.0,0.16151208]
[1765383955730,0.003,92416.0,92415.0,0.20340652]
[1765383959932,0.003,92416.0,92415.0,0.20306208]
[1765383960530,0.01098113,92432.0,92431.0,0.14038]
[1765383960732,0.01098113,92432.0,92431.0,0.1711091]
[1765383961425,0.00016223,92432.0,92431.0,0.1711091]
[1765383961620,0.14063223,92432.0,92431.0,0.1711091]
[1765383962027,0.14363223,92432.0,92431.0,0.1711091]
[1765383962324,0.14363223,92432.0,92431.0,0.19994725]
[1765383962521,0.07229223,92432.0,92431.0,0.19994725]
[1765383962726,0.06929223,92432.0,92431.0,0.19994725]
[1765383962926,0.06929223,92432.0,92431.0,0.20094725]
[1765383963436,0.06929223,92432.0,92431.0,0.20194725]
[1765383963935,0.00016223,92432.0,92431.0,0.1721091]
[1765383964125,0.00016223,92432.0,92431.0,0.1731091]
[1765383964333,0.00016223,92432.0,92431.0,0.20194563]
[1765383964628,0.00016223,92432.0,92431.0,0.1731091]
[1765383964830,1.0,92450.0,92441.0,0.14038]
[1765383965027,1.0,92450.0,92449.0,0.1511969]
[1765383965222,1.0,92450.0,92449.0,0.903526]
[1765383965633,1.0,92450.0,92449.0,0.9323551]
[1765383965934,1.002,92450.0,92449.0,0.94194287]
[1765383966135,1.002,92450.0,92449.0,0.903526]
[1765383966538,1.005,92450.0,92449.0,0.903526]
[1765383966837,0.89288,92450.0,92449.0,0.94194287]